Cogmind - Beta 15 @@@ ROGUE MODE // 2025.09.30 @ 21:15:02 Player: Figgis Result: Destroyed by DAS Turret with DAS Cannon Performance ------------- Evolutions (1) 500 Regions Visited (5) 1000 Robots Destroyed (45) 225 Value Destroyed (840) 840 Prototype IDs (1) 20 Alien Tech Used (0) 0 Bonus (0) 0 TOTAL SCORE: 2585 Bonus ------- None Cogmind --------- Core Integrity 0/400 Matter 218/300 Energy 249/250 System Corruption 0% Temperature Cool (0) Movement Core (100) Ox1 Location -9/Exiles Parts ------- > --- POWER (1) -------- Ion Engine > --- PROPULSION (2) --- (None) > --- UTILITY (4) ------ (None) > --- WEAPON (2) ------- (None) > --- INVENTORY (5) ---- Improved Aluminum Leg Large Storage Unit Shock Trap Peak State ------------ > --- POWER ------------ Ion Engine > --- PROPULSION ------- Improved Aluminum Leg Improved Aluminum Leg > --- UTILITY ---------- Improved Heat Sink Large Storage Unit Improved Terrain Scanner Improved Light Armor Plating > --- WEAPON ----------- Heavy Assault Cannon > --- INVENTORY -------- Ion Engine Light Nuclear Core Improved Aluminum Leg Improved Aluminum Leg Improved Aluminum Leg Improved Aluminum Leg Improved Light Armor Plating Reflective Plating Heavy Assault Cannon Rocket Launcher Axe Shock Trap Shock Trap Shock Trap [Rating: 24] Favorites ----------- Power Light Ion Engine Engine Light Ion Engine Power Core Light Nuclear Core Propulsion Aluminum Leg Leg Aluminum Leg Flight Unit Improved Flight Unit Utility Large Storage Unit Device Improved Terrain Scanner Storage Large Storage Unit Protection Improved Light Armor Plating Weapon Light Assault Rifle Energy Gun Medium Laser Ballistic Gun Light Assault Rifle Ballistic Cannon Heavy Assault Cannon Launcher Rocket Launcher Slashing Weapon Axe Build | -11 -10 -10 -9 -9 -9 ------- Run | Yrd Mat Min Mat Min Exi Slots Evolved 2 | . . . 2 . . Power . | . . . . . . Propulsion . | . . . . . . Utility 2 | . . . 2 . . Weapon . | . . . . . . Parts Attached 41 | 6 4 3 16 4 8 Power 7 | 1 1 1 1 1 2 Engine 6 | 1 1 1 1 1 1 Core 1 | . . . . . 1 Reactor . | . . . . . . Propulsion 11 | 2 . 1 5 . 3 Treads . | . . . . . . Leg 10 | 2 . 1 4 . 3 Wheel . | . . . . . . Hover . | . . . . . . Flight 1 | . . . 1 . . Utility 13 | 1 3 . 5 3 1 Device 4 | . 1 . 1 2 . Storage 4 | 1 2 . 1 . . Processor . | . . . . . . Hackware . | . . . . . . Protection 5 | . . . 3 1 1 Artifact . | . . . . . . Weapon 10 | 2 . 1 5 . 2 Energy Gun 1 | . . . 1 . . Energy Cannon . | . . . . . . Ballistic Gun 3 | 2 . 1 . . . Ballistic Cannon 4 | . . . 3 . 1 Launcher 1 | . . . . . 1 Special Weapon . | . . . . . . Impact Weapon . | . . . . . . Slashing Weapon 1 | . . . 1 . . Piercing Weapon . | . . . . . . Special Melee Weapon . | . . . . . . Unidentified Prototypes 1 | . . . 1 . . Parts Lost 22 | . . 3 1 5 13 Power 4 | . . 1 . 1 2 Propulsion 6 | . . 1 . 1 4 Utility 6 | . . . . 3 3 Weapon 6 | . . 1 1 . 4 Highest Loss Streak 7 | . . 2 1 3 7 To Critical Strikes 8 | . . 1 . . 7 Average Backups 9 | 2 6 11 10 10 7 Power 1 | . 1 2 2 1 1 Propulsion 3 | . 2 3 3 4 2 Utility 1 | . . 1 2 1 . Weapon 2 | 1 2 4 2 3 2 Tool/Special . | . . . . . . Unused Backups 12 | . . 1 5 2 4 Power 3 | . . . . . 3 Propulsion 5 | . . . 4 . 1 Utility . | . . . . . . Weapon 4 | . . 1 1 2 . Tool/Special . | . . . . . . Average Slot Usage (%) 89 | . 100 99 86 84 68 Engine 11 | . 14 13 10 10 7 Leg 24 | . 28 28 22 21 20 Device 16 | . 14 14 20 18 9 Storage 12 | . 14 14 11 11 10 Protection 5 | . . . 8 11 8 Ballistic Gun 13 | . 28 27 4 . . Ballistic Cannon 5 | . . . 8 11 9 Peak Build Rating 24 | 6 9 11 22 24 23 Average Rating 14 | 5 9 10 17 21 17 On Entrance 11 | . 6 9 11 22 18 Naked Turns . | . . . . . . Heaviest Build 45 | 11 27 27 42 45 41 Greatest Support 26 | 20 20 20 26 26 26 Greatest Overweight (x) 8 | 1 1 2 8 3 3 Average Overweight (x) . | . . 1 1 1 . Largest Inventory Capacity 25 | 8 15 15 25 15 15 Average Capacity 13 | 7 11 15 15 15 14 Most Carried 15 | 5 9 15 15 15 15 Average Carried 11 | 2 6 12 14 14 10 Final Capacity 15 | 8 15 15 15 15 5 Final Carried 15 | 3 9 15 15 14 3 Class Distribution -------------------- 95% | Mutant 4% | Scavenger-Mutant Dominant Class ---------------- Mutant | -10/Materials Mutant | -10/Mines Mutant | -9/Materials Mutant | -9/Mines Mutant | -9/Exiles Resources | -11 -10 -10 -9 -9 -9 ----------- Run | Yrd Mat Min Mat Min Exi Matter Collected 1437 | 262 266 126 320 174 289 Remotely . | . . . . . . Salvage Created 1036 | 183 299 142 272 117 23 Parts 70 | 13 19 5 21 12 . Haulers Intercepted . | . . . . . . Recyclers Shooed 3 | . 2 . 1 . . Parts Field Recycled . | . . . . . . Retrieved Matter . | . . . . . . Parts Self-Destructed . | . . . . . . Prevented . | . . . . . . Kills | -11 -10 -10 -9 -9 -9 ------- Run | Yrd Mat Min Mat Min Exi Combat Hostiles Destroyed 40 | . 10 5 12 7 6 Guns 19 | . 10 5 4 . . Cannons 14 | . . . 7 7 . AOE 6 | . . . . . 6 Classes Destroyed 9 | 2 3 . 2 2 . Worker 1 | . . . 1 . . Builder 1 | . . . . 1 . Tunneler 8 | 7 . . . 1 . Recycler 1 | 1 . . . . . Watcher 2 | . 1 . 1 . . Swarmer 17 | . 5 3 6 3 . Grunt 14 | . 5 2 5 2 . Sentry 1 | . . . 1 . . Assembled 8 | . . . . 2 6 Best Kill Streak 6 | 5 4 2 4 4 6 Combat Bots Only 6 | . 4 2 3 3 6 Max Kills in Single Turn 4 | 1 1 1 1 2 4 Gunslinging . | . . . . . . Exploded 4 | . . . . . 4 Melee . | . . . . . . Uniques/NPCs Destroyed . | . . . . . . Combat | -11 -10 -10 -9 -9 -9 -------- Run | Yrd Mat Min Mat Min Exi Hostile Shots Fired 277 | . 32 38 50 51 106 Missed 74 | . 9 8 21 6 30 Hits 203 | . 23 30 29 45 76 Melee 1 | . . . . . 1 Projectile 202 | . 23 30 29 45 75 AOE 12 | . . . . 12 . Critical Strikes 39 | . 1 2 1 2 33 Part Disruptions 1 | . . . . . 1 Damage Taken 3124 | . 216 391 275 795 1447 Core 554 | . 64 81 38 98 273 Absorbed by Shields . | . . . . . . Core Remaining (%) 71 | 100 . 42 . . . Volleys Fired 164 | 27 38 19 36 19 25 Largest 2 | 2 2 2 2 1 1 Hottest 70 | 40 40 40 70 50 50 Shots Fired 255 | 54 76 38 43 19 25 Gun 182 | 54 76 38 14 . . Cannon 67 | . . . 29 19 19 Launcher 6 | . . . . . 6 Special . | . . . . . . Kinetic 247 | 54 76 38 41 19 19 Thermal 2 | . . . 2 . . Explosive 6 | . . . . . 6 Electromagnetic . | . . . . . . Robot Hit Streak 9 | 5 6 9 8 3 3 Robot Miss Streak 3 | 2 3 2 3 2 3 Penetration Max 1 | . . . . 1 . Secondary Targets 1 | . . 1 . . . Max Gunslinging Chain 1 | . . 1 . . . Shots Hit Robots 149 | 29 38 29 24 11 18 Core Hits 70 | 11 16 10 14 7 12 Critical Kills . | . . . . . . Critical Parts Destroyed 2 | 1 1 . . . . Critical Strikes 5 | 1 1 . 2 1 . Burn 1 | . . . 1 . . Destroy 2 | 1 1 . . . . Blast 2 | . . . 1 1 . Melee Attacks 7 | . . . 2 . 5 Impact . | . . . . . . Slashing 7 | . . . 2 . 5 Piercing . | . . . . . . Sneak Attacks . | . . . . . . Combat Hostiles . | . . . . . . Follow-up Attacks . | . . . . . . Damage Inflicted 3949 | 326 441 302 1057 629 1194 Guns 1151 | 326 441 301 83 . . Cannons 2230 | . . . 974 629 627 Explosions 411 | . . . . . 411 Melee 152 | . . . . . 152 Ramming 5 | . . 1 . . 4 Kinetic 3353 | 326 441 301 1029 629 627 Thermal 28 | . . . 28 . . Explosive 411 | . . . . . 411 Electromagnetic . | . . . . . . Impact . | . . . . . . Slashing 152 | . . . . . 152 Piercing . | . . . . . . Highest Corruption . | . . . . . . Average Corruption . | . . . . . . Corruption Purged . | . . . . . . Corruption Blocked . | . . . . . . Overload Shots . | . . . . . . Overflow Damage 320 | . . . 153 120 47 Projectiles 273 | . . . 153 120 . Explosions 47 | . . . . . 47 Melee . | . . . . . . Knockbacks 9 | . . . 3 1 5 Impact . | . . . . . . Kinetic 8 | . . . 2 1 5 Secondary 1 | . . . 1 . . Self-Inflicted Damage 110 | . . . . . 110 Shots 4 | . . . . . 4 Rammed . | . . . . . . Targets Rammed 2 | . . 1 . . 1 Kicked 2 | . . 1 . . 1 Crushed . | . . . . . . Highest Temperature 56 | . 6 30 56 25 5 Average Temperature 12 | . 6 11 14 9 5 Received Heat Transfer 354 | . 60 153 72 9 60 Siege Activations . | . . . . . . Martial Activations . | . . . . . . Shielding Activations . | . . . . . . Robots Disrupted . | . . . . . . Combat Hostiles . | . . . . . . Robots Corrupted 1 | . . . 1 . . Combat Hostiles 1 | . . . 1 . . Parts Fried 1 | . . . 1 . . Impact Corruptions 1 | . . . 1 . . Robots Melted . | . . . . . . Combat Hostiles . | . . . . . . Parts Melted . | . . . . . . Heat Transferred 148 | . . . 148 . . Parts Sabotaged . | . . . . . . Parts Stolen . | . . . . . . Parts Stripped . | . . . . . . Power Chain Reactions . | . . . . . . Alert | -11 -10 -10 -9 -9 -9 ------- Run | Yrd Mat Min Mat Min Exi Maximum Alert Level . | . . . . . . Low Security (%) 100 | 100 100 100 100 100 . Level 1 . | . . . . . . Level 2 . | . . . . . . Level 3 . | . . . . . . Level 4 . | . . . . . . Level 5 . | . . . . . . High Security . | . . . . . . Max Security . | . . . . . . Peak Influence 155 | 15 155 55 116 50 . Initial 17 | . . . . 17 . Average 26 | 1 59 4 39 10 . Influence Increases 1030 | 40 273 135 427 155 . Destroy 0b10 Robot/C 640 | . 200 100 240 100 . Destroy 0b10 Robot/NC 65 | 40 5 . 10 10 . Destroy Leader 124 | . 32 20 52 20 . Successful Hack 6 | . 6 . . . . Disable Machine 15 | . . . 15 . . Destroy Structure 30 | . . . 20 10 . Partial Spotted 15 | . . . . 15 . Lose Combat Pursuer 135 | . 30 15 90 . . Influence Decreases 1030 | 40 273 135 381 201 . Entered New Map 29 | . . . . 29 . Time Decay 935 | 40 273 108 381 133 . Lost Part 66 | . . 27 . 39 . Squads Dispatched 3 | . 2 . 1 . . Investigation 1 | . 1 . . . . Extermination . | . . . . . . Reinforcement 2 | . 1 . 1 . . Assault . | . . . . . . Garrison . | . . . . . . Intercept . | . . . . . . Searches Triggered . | . . . . . . Construction Impeded . | . . . . . . Haulers Reinforced . | . . . . . . Active Scanning Responses . | . . . . . . Cargo Convoy Interrupts . | . . . . . . Stealth | -11 -10 -10 -9 -9 -9 --------- Run | Yrd Mat Min Mat Min Exi Distress Signals 3 | . 1 . 2 . . Communications Jammed . | . . . . . . Distress Signals . | . . . . . . Times Spotted 65 | . 18 5 21 13 8 Peak Tracking Total 9 | . 3 3 3 6 9 Tactical Retreats 8 | . 2 1 3 1 1 Traps | -11 -10 -10 -9 -9 -9 ------- Run | Yrd Mat Min Mat Min Exi Traps Triggered 2 | . 1 1 . . . Indirectly . | . . . . . . Trap Hack Attempts . | . . . . . . Triggered . | . . . . . . Disarmed . | . . . . . . Reprogrammed . | . . . . . . Reused 1 | . . . . . 1 Traps Extracted . | . . . . . . Installed 2 | . . . . . 2 Triggered . | . . . . . . Most Traps Carried 4 | . . 4 4 3 3 Machines | -11 -10 -10 -9 -9 -9 ---------- Run | Yrd Mat Min Mat Min Exi Machines Disabled 8 | . . . 1 . 7 Max in Single Turn 2 | . . . 1 . 2 Machines Repaired . | . . . . . . Machines Dismantled . | . . . . . . Machines Sabotaged . | . . . . . . Overloaded Fab Kills . | . . . . . . Hacking | -11 -10 -10 -9 -9 -9 --------- Run | Yrd Mat Min Mat Min Exi Machines Accessed 6 | . 3 1 2 . . Terminals 4 | . 3 . 1 . . Fabricators . | . . . . . . Repair Stations . | . . . . . . Recycling Units . | . . . . . . Scanalyzers 1 | . . . 1 . . Garrison Access . | . . . . . . Total Hacks 23 | . 6 1 16 . . Successful 15 | . 2 1 12 . . Failed 7 | . 4 . 3 . . Catastrophic 4 | . 3 . 1 . . Database Lockouts 1 | . . . 1 . . Manual 13 | . 6 . 7 . . Terminals 17 | . 6 . 11 . . Fabricators . | . . . . . . Repair Stations . | . . . . . . Recycling Units . | . . . . . . Scanalyzers 5 | . . . 5 . . Garrison Access . | . . . . . . Terminal Hacks 9 | . 2 1 6 . . Robot Analysis 3 | . . . 3 . . Open Door 1 | . . 1 . . . Alert Level 1 | . 1 . . . . Unreport Threat 1 | . 1 . . . . Locate Traps 1 | . . . 1 . . Patrol Status 1 | . . . 1 . . Zone Layout 1 | . . . 1 . . Fabricator Hacks . | . . . . . . Repair Station Hacks . | . . . . . . Recycling Unit Hacks . | . . . . . . Scanalyzer 5 | . . . 5 . . Insert Component 3 | . . . 3 . . Analyze 2 | . . . 2 . . Garrison Access Hacks . | . . . . . . Unauthorized Hacks 1 | . . . 1 . . Terminals 1 | . . . 1 . . Assimilate 1 | . . . 1 . . Fabricators . | . . . . . . Repair Stations . | . . . . . . Recycling Units . | . . . . . . Scanalyzers . | . . . . . . Garrison Access . | . . . . . . Data Cores Recovered . | . . . . . . Used . | . . . . . . Hacking Detections 5 | . 3 . 2 . . Full Trace Events 1 | . . . 1 . . Feedback Events . | . . . . . . Feedback Blocked . | . . . . . . Robot Schematics Acquired . | . . . . . . Robots Built . | . . . . . . Authchips . | . . . . . . Time . | . . . . . . Total Robot Build Rating . | . . . . . . Part Schematics Acquired 1 | . . . 1 . . Parts Built . | . . . . . . Authchips . | . . . . . . Time . | . . . . . . Total Part Build Rating . | . . . . . . Parts Repaired . | . . . . . . Time . | . . . . . . Parts Recycled . | . . . . . . Recycled Matter . | . . . . . . Retrieved Matter . | . . . . . . Retrieved Components . | . . . . . . Parts Scanalyzed 2 | . . . 2 . . Part Schematics Acquired 1 | . . . 1 . . Parts Damaged . | . . . . . . Bothacking | -11 -10 -10 -9 -9 -9 ------------ Run | Yrd Mat Min Mat Min Exi Used RIF Installer . | . . . . . . Robots Hacked . | . . . . . . Non-combat . | . . . . . . Combat . | . . . . . . Robot Hacks Applied . | . . . . . . Relay Couplers Released . | . . . . . . Fabnet Peak Effective % . | . . . . . . Robots Rewired . | . . . . . . Allies Hacked . | . . . . . . Hacks Repelled . | . . . . . . Allies | -11 -10 -10 -9 -9 -9 -------- Run | Yrd Mat Min Mat Min Exi Total Allies . | . . . . . . Largest Group . | . . . . . . Highest-Rated Group . | . . . . . . Highest-Rated Ally . | . . . . . . Total Orders . | . . . . . . Ally Attacks . | . . . . . . Total Damage . | . . . . . . Kills . | . . . . . . Allies Corrupted . | . . . . . . Allies Melted . | . . . . . . Intel | -11 -10 -10 -9 -9 -9 ------- Run | Yrd Mat Min Mat Min Exi Active Infowar (turns) 4046 | . 769 1154 1463 660 . Terrain 4046 | . 769 1154 1463 660 . Seismic 1668 | . . . 1300 368 . Robot Analysis Total 3 | . . . 3 . . Derelict Logs Recovered 2 | . . 2 . . . Drone Launches . | . . . . . . Drone Recoveries . | . . . . . . Exploration | -11 -10 -10 -9 -9 -9 ------------- Run | Yrd Mat Min Mat Min Exi Turns Passed 4841 | 306 770 1154 1463 688 460 Spaces Moved 2296 | 183 405 559 639 308 202 Core 34 | 13 . . 1 . 20 Treads . | . . . . . . Legs 2262 | 170 405 559 638 308 182 Wheels . | . . . . . . Hover . | . . . . . . Flight . | . . . . . . Fastest Speed 50 | 50 120 190 190 190 100 Average Speed 177 | 115 151 190 192 190 179 Slowest Speed 450 | 120 190 260 450 330 330 Overloaded Moves . | . . . . . . Propulsion Burnouts . | . . . . . . Robots Hopped . | . . . . . . Potential Cave-ins 1 | . . . . 1 . Cave-ins Triggered . | . . . . . . Exploration Rate (%) 53 | 5 77 91 35 78 37 Regions Visited 5 Branch Regions 3 Pre-discovered Areas 1 | . . . . 1 . Known Exits Taken . | . . . . . . Unknown Exits Taken 5 | 1 1 1 1 1 . Scrap Searched 2 | . . 1 . 1 . Spaces Dug 12 | . . . 2 . 10 Terrain Destroyed 80 | . . . 20 11 49 Melee 2 | . . . 2 . . Projectile 39 | . . . 18 11 10 AOE 39 | . . . . . 39 Terrain Rammed . | . . . . . . Walls Destroyed . | . . . . . . Machines Disabled . | . . . . . . Actions | -11 -10 -10 -9 -9 -9 --------- Run | Yrd Mat Min Mat Min Exi Total 2800 | 229 492 616 820 382 261 Wait 206 | 6 33 24 94 46 3 Move 2291 | 182 404 558 638 307 202 Hop . | . . . . . . Pick Up 44 | 8 10 10 9 3 4 Fast Attach 10 | 1 . . 7 2 . Attach 25 | 5 1 3 3 2 11 Detach 2 | . . . . . 2 Swap 13 | . 3 . 10 . . Drop 34 | . 3 1 21 3 6 Fire 164 | 27 38 19 36 19 25 Melee 7 | . . . 2 . 5 Ram . | . . . . . . Kick 2 | . . 1 . . 1 Crush . | . . . . . . Escape Stasis . | . . . . . . Rewire . | . . . . . . Trap 2 | . . . . . 2 Miscellaneous . | . . . . . . Route ------- -11/Scrapyard -10/Materials (discovered 3 exits: *Mat x2 / *Min) -10/Mines (discovered 3 exits: *Mat x2 / [*Sub]) -9/Materials (discovered 3 exits: [*Mat] / [*Min] / [Sto]) -9/Mines (discovered 4 exits: [*Mat x2] / [*Exi] / [*Zio]) -9/Exiles History --------- Turn | Location | Event 4 | -11/Scrapyard | Discovered new exit (range 15) 307 | -11/Scrapyard | Entered Materials 328 | -10/Materials | Build established: Mutant 658 | -10/Materials | Discovered new exit (range 15) 823 | -10/Materials | Discovered new exit (range 11) 1007 | -10/Materials | Discovered new exit (range 7) 1077 | -10/Materials | Entered Mines 1082 | -10/Mines | Met a Derelict who couldn't figure out how to use a Trap Extractor 1211 | -10/Mines | Discovered new exit (range 7) 1452 | -10/Mines | Core integrity fell below 50% 1644 | -10/Mines | Learned Materials trap positions 1661 | -10/Mines | Discovered new exit (range 12) 1701 | -10/Mines | Learned Materials stockpile data 1825 | -10/Mines | Discovered new exit (range 15) 1937 | -10/Mines | Found a hidden stash of uninstalled traps 2231 | -10/Mines | Entered Materials 2231 | -9/Materials | Evolved 2 slots: Utility x2 2232 | -9/Materials | Loaded intel: 20 trap records 2267 | -9/Materials | Central database locked down 2267 | -9/Materials | Discovered new exit (range 15) 2600 | -9/Materials | Discovered new exit (range 13) 3059 | -9/Materials | Discovered new exit (range 15) 3694 | -9/Materials | Entered Mines 3949 | -9/Mines | Discovered new exit (range 6) 4009 | -9/Mines | A Derelict revealed a hidden shortcut to a safe place 4077 | -9/Mines | Discovered new exit (range 8) 4162 | -9/Mines | Received a Rocket Launcher from a helpful Derelict 4309 | -9/Mines | Assembled infested the area 4340 | -9/Mines | Learned location of Storage (-9) 4370 | -9/Mines | Discovered new exit (range 7) 4382 | -9/Mines | Entered Exiles 4413 | -9/Exiles | Lost 3 parts (1n2u) 4570 | -9/Exiles | Met 8R-AWN 4606 | -9/Exiles | Met EX-HEX 4623 | -9/Exiles | Warned about trapping Exiles lab 4651 | -9/Exiles | Attacked by the Exiles 4665 | -9/Exiles | Core integrity fell below 50% 4757 | -9/Exiles | Lost 6 parts (2p1n2u1w) 4811 | -9/Exiles | Core integrity fell below 20% 4842 | -9/Exiles | Destroyed by DAS Turret with DAS Cannon Last Messages --------------- 04810_ Axe destroyed. 04811_ Kicked 8R-AWN. 04814_ Penetrated by HV Slug. 04818_ Imp. Aluminum Leg destroyed. 04818_ Penetrated by HV Slug. 04818_ HV Slug penetrates Wall. 04818_ Penetrated by HV Slug. 04818_ HV Slug penetrates Wall. 04823_ Penetrated by HV Slug. 04823_ Critical hit (Destroy). 04823_ Imp. Aluminum Leg destroyed. 04823_ HV Slug penetrates Machine. 04823_ Penetrated by HV Slug. 04823_ HV Slug penetrates Wall. 04823_ Machine disabled. 04824_ The unstable cave ceiling collapses. 04827_ Penetrated by HV Slug. 04827_ HV Slug penetrates Machine. 04827_ Penetrated by HV Slug. 04827_ HV Slug penetrates Machine. Map ----- +----------------------------------------------------+ | ?????????????????????????????????????????????????? | | ?????????????????????????????????????????????????? | | ?????????????????????????????????????????????????? | | ?????????????????????????????????????????????????? | | ?????????????????????????????????????????????????? | | ?????????????????????????????????????????????????? | | ?????????????????????????????????????????????????? | | ?????????????????????????????????????????????????? | | ?????????????????????????????????????????????????? | | ?????????????????????????????????????????????????? | | ???????????????????????????? ????????????????? | | ??????????????????????????? ???????????????? | | ??????????????????????????? ???????????????? | | ???????????????????????????" ??????????????? | | ???????????????????????????" ???????????????? | | ??????????????????????????#" ????????????????? | | ?????????????????????????##" #????????????????? | | ????????????????????????##"" #????????????????? | | ???????????????????######"" #????????????????? | | ??????????????????##""""""" ##???????????????? | | ??????????????? """""" " "" ##????####???#??? | | ??????????? "" """ " #####"""""""""?? | | ??????????? " " " """ """"# | | ?????????? "" " ? | | ?????????? " ""? | | ?????????? @ " " | | ?????????? % " " | | ?????????? " | | ??????????? """""" | | ??????????? ######""" | | ???????????? ""#?????#####""" | | ???????????? """#??????????##""" | | ???????????? """#????????????#"""" | | ????????????? ?????????????###"" | | ????????????? #??##########" " | | ?????????????? ## | | ????????????? | | ????????????? | | ???????????? | | ???????????? % " | | ???????????? | | ???????????? "" #"" " " | | ???????????? "" % ###### " " | | ?????????????? """"# #?### "" | | ??????????????? ?????"?## ##???###""" ## # | | ????????????????????????# !#?????# ### ## | | ????????????????????????## !#?????######?###? | | ?????????????????????????## #???????????????? | | ??????????????????????????#!!""!""#??????????????? | | ??????????????????????????######## #?????????????? | +----------------------------------------------------+ Best States ------------- Heat Dissipation 42 Energy Generation 14 Energy Capacity 250 Matter Stores 300 Matter Capacity 300 Sight Range 16 Terrain Scan Range 16 Terrain Scan Density 10 Armor Coverage 300 Resistance: TH 10 Evasion (%) 55 Item Schematics ----------------- Huge Storage Unit | -9/Materials | Scanalyzed Robot Schematics ------------------ None Fabricated ------------ Nothing Repaired ---------- Nothing Alien Tech Used ----------------- None Achievements -------------- None Challenges ------------ None Game ------ Seed SigixBiocellProcessor Manual? 0 Play Time 00:27:48 Cumulative 195.5 hours Start 2025.09.30 @ 20:46:26 End 2025.09.30 @ 21:15:02 Sessions 1 Manual Loads 0 Difficulty Rogue Special Mode None Game No. 313 Rogue 310 Adventurer 3 Explorer 0 Win Type - Total 1 Types 1/0/0/0/0/0/0/0/0/0 Lore% 65 Gallery% 60 Achievement% 47 Wizard Run 0 Options --------- Layout 0 ASCII 0 Keyboard 0 Movement Mouse Keybinds 0 Fullscreen 2 Font 18/SmallcapsGlow Map View 76x50 Zoom Use 0% Tactical HUD 1 Map Filters NONE Filters NONE Steam 1 RUN: 331dbb5f-9ddb-417c-bb39-f4e55bb35426